Cogmind - Beta 15 @@@ ROGUE MODE // 2025.09.28 @ 11:56:50 Player: led Result: Destroyed by S-43 Plague with Heavy Machine Gun Performance ------------- Evolutions (9) 4500 Regions Visited (12) 2400 Robots Destroyed (50) 250 Value Destroyed (774) 774 Prototype IDs (5) 100 Alien Tech Used (0) 0 Bonus (0) 0 TOTAL SCORE: 8024 Bonus ------- None Cogmind --------- Core Integrity 0/1600 Matter 9/300 Energy 99/100 System Corruption 3% Temperature Cool (0) Movement Core (50) Location -1/Access Parts ------- > --- POWER (2) -------- (None) > --- PROPULSION (6) --- (None) > --- UTILITY (15) ----- (None) > --- WEAPON (2) ------- (None) > --- INVENTORY (5) ---- Light Quantum Reactor Impulse Thruster Advanced Point Defense System Gamma Bomb Array Advanced Datajack Peak State ------------ > --- POWER ------------ Micro Antimatter Reactor > --- PROPULSION ------- Improved Flight Unit Improved Flight Unit Cooled Cesium-ion Thruster Field Propulsion Array Q-thruster > --- UTILITY ---------- Advanced Power Amplifier Advanced Heat Sink Small Battery Compact Battery Enhanced Optical Array Improved Sensor Array Improved Signal Interpreter Advanced Signal Interpreter Advanced Transmission Jammer Advanced Point Defense System Hacking Suite Hacking Suite Hacking Suite System Shield System Shield > --- WEAPON ----------- Linear Accelerator Plasma Lance > --- INVENTORY -------- Centrium Wheel Combat Antigrav System Combat Antigrav System Improved Transmission Jammer Advanced Datajack [Rating: 123] Favorites ----------- Power Light Nuclear Core Engine Light Deuterium Engine Power Core Light Nuclear Core Reactor Micro Antimatter Reactor Propulsion Improved Flight Unit Wheel Compact Wheel Flight Unit Improved Flight Unit Utility Hacking Suite Device Improved Sensor Array Storage Small Storage Unit Processor Improved Signal Interpreter Hackware Hacking Suite Protection Improved Light Armor Plating Weapon Linear Accelerator Energy Gun Pulse Rifle Energy Cannon Improved EM Pulse Cannon Ballistic Gun Assault Rifle Ballistic Cannon Linear Accelerator Launcher Mini Grenade Launcher Impact Weapon Heavy Hammer Slashing Weapon Scythe Piercing Weapon Plasma Lance Special Melee Weapon Advanced Datajack Build | -11 -10 -9 -8 -7 -6 -6 -6 -5 -4 -3 -2 -1 ------- Run | Yrd Mat Mat Mat Fac Fac Was Fac Fac Fac Res Res Acc Slots Evolved 18 | . . 2 2 2 2 . . 2 2 2 2 2 Power 1 | . . . . . . . . . 1 . . . Propulsion 4 | . . 1 . . . . . 1 1 1 . . Utility 13 | . . 1 2 2 2 . . 1 . 1 2 2 Weapon . | . . . . . . . . . . . . . Parts Attached 85 | 9 7 11 10 2 . . 8 4 9 1 16 8 Power 8 | 1 . 1 2 . . . . . 1 . 3 . Engine 3 | 1 . 1 . . . . . . 1 . . . Core 3 | . . . 2 . . . . . . . 1 . Reactor 2 | . . . . . . . . . . . 2 . Propulsion 11 | 2 2 1 . 1 . . 1 . 1 . 1 2 Treads . | . . . . . . . . . . . . . Leg . | . . . . . . . . . . . . . Wheel 3 | 2 . . . . . . . . . . . 1 Hover . | . . . . . . . . . . . . . Flight 8 | . 2 1 . 1 . . 1 . 1 . 1 1 Utility 44 | 3 2 5 6 1 . . 4 4 5 1 7 6 Device 22 | 1 1 2 2 . . . 3 3 3 . 4 3 Storage 5 | 2 . 1 . . . . . . . . 1 1 Processor 6 | . 1 1 1 . . . . . . . 2 1 Hackware 6 | . . . 2 1 . . . . 1 1 . 1 Protection 5 | . . 1 1 . . . 1 1 1 . . . Artifact . | . . . . . . . . . . . . . Weapon 22 | 3 3 4 2 . . . 3 . 2 . 5 . Energy Gun 5 | . . 3 . . . . . . . . 2 . Energy Cannon 2 | . . . 2 . . . . . . . . . Ballistic Gun 4 | 3 1 . . . . . . . . . . . Ballistic Cannon 1 | . . . . . . . . . . . 1 . Launcher 3 | . 1 1 . . . . 1 . . . . . Special Weapon . | . . . . . . . . . . . . . Impact Weapon 1 | . . . . . . . 1 . . . . . Slashing Weapon 2 | . . . . . . . 1 . 1 . . . Piercing Weapon 1 | . . . . . . . . . . . 1 . Special Melee Weapon 3 | . 1 . . . . . . . 1 . 1 . Unidentified Prototypes 2 | . 1 . . . . . . . . . 1 . Parts Lost 17 | . . . . 1 . . . 1 1 . 7 7 Power 1 | . . . . . . . . . . . 1 . Propulsion 6 | . . . . 1 . . . . . . . 5 Utility 9 | . . . . . . . . 1 1 . 6 1 Weapon 1 | . . . . . . . . . . . . 1 Highest Loss Streak 6 | . . . . 1 . . . 1 1 . 3 6 To Critical Strikes . | . . . . . . . . . . . . . Average Backups 4 | 2 7 4 6 4 4 5 4 4 4 4 4 4 Power . | . 1 1 . . 1 1 . . . 1 1 . Propulsion . | . 2 . 1 . . 1 . . . . . 1 Utility 2 | . 1 . 1 2 2 2 2 2 3 3 3 1 Weapon . | . 1 1 2 1 . 1 . 1 . . . . Tool/Special . | . . . . . . . . . . . . . Unused Backups 35 | 2 4 1 7 2 1 . 3 2 4 . 3 6 Power 4 | . . . 2 . . . 1 . . . . 1 Propulsion 13 | 2 4 . 2 1 . . . . . . . 4 Utility 12 | . . 1 1 . 1 . 2 . 4 . 3 . Weapon 6 | . . . 2 1 . . . 2 . . . 1 Tool/Special . | . . . . . . . . . . . . . Average Slot Usage (%) 86 | . 95 94 92 76 57 60 76 96 92 92 92 80 Engine 2 | . 14 11 2 . . . . . 3 4 2 . Core 2 | . . . 6 . . . 4 5 5 4 2 . Flight 21 | . 8 30 27 22 20 20 19 23 20 23 20 17 Device 16 | . 11 12 17 13 6 6 10 25 16 14 19 19 Storage 1 | . 10 . 8 . . . . . . . . 4 Processor 6 | . 2 8 5 7 6 6 6 5 5 4 4 8 Hackware 16 | . . . 4 22 20 20 20 17 19 21 21 20 Protection 5 | . . 9 8 6 . . 3 5 10 9 7 . Energy Gun 1 | . . 17 3 . . . . . . . . . Ballistic Gun 1 | . 26 2 . . . . . . . . . . Ballistic Cannon 1 | . . . . . . . . . . . 2 2 Launcher 1 | . 1 . . . 3 6 6 5 1 . . . Special Melee Weapon 1 | . . . . . . . . . 3 4 3 . Peak Build Rating 123 | 7 12 23 31 34 26 26 51 59 78 84 109 123 Average Rating 60 | 5 8 20 27 29 25 26 37 57 73 82 103 106 On Entrance 38 | . 7 10 22 30 24 26 26 46 58 78 84 95 Naked Turns 71 | . . . . . . . . . . . . 71 Heaviest Build 43 | 18 16 17 22 15 2 2 22 19 28 28 43 36 Greatest Support 48 | 26 26 21 21 21 14 14 16 29 31 35 48 42 Greatest Overweight (x) 5 | . 4 1 1 . . . 1 . 1 . 5 . Average Overweight (x) . | . . . . . . . . . . . . . Largest Inventory Capacity 8 | 8 8 8 8 5 5 5 5 5 5 5 5 5 Average Capacity 5 | 5 7 5 7 5 5 5 5 5 5 5 5 5 Most Carried 8 | 6 8 6 8 5 5 5 5 5 5 5 5 5 Average Carried 4 | 2 7 4 7 4 4 5 4 4 4 4 4 4 Final Capacity 8 | 8 5 8 5 5 5 5 5 5 5 5 5 5 Final Carried 6 | 6 5 6 5 5 5 5 5 5 5 5 4 5 Class Distribution -------------------- 35% | Hacker-Sprinter 25% | Mutant 14% | Hacker-Scout 8% | Hacker-Mutant 7% | Wizard-Ninja 6% | Hacker-Ninja Dominant Class ---------------- Mutant | -10/Materials Mutant | -9/Materials Mutant | -8/Materials Hacker-Mutant | -7/Factory Hacker-Sprinter | -6/Factory Hacker-Sprinter | -6/Waste Hacker-Scout | -6/Factory Hacker-Scout | -5/Factory Hacker-Scout | -4/Factory Hacker-Scout | -3/Research Hacker-Sprinter | -2/Research Wizard-Ninja | -1/Access Resources | -11 -10 -9 -8 -7 -6 -6 -6 -5 -4 -3 -2 -1 ----------- Run | Yrd Mat Mat Mat Fac Fac Was Fac Fac Fac Res Res Acc Matter Collected 2055 | 329 77 291 156 12 6 . 410 40 102 . 612 20 Remotely . | . . . . . . . . . . . . . Salvage Created 1266 | 153 96 315 196 13 . . 170 46 60 . 217 . Parts 99 | 13 12 29 12 4 . . 5 4 11 . 9 . Haulers Intercepted 3 | . 1 1 . . . . . . . . 1 . Recyclers Shooed 1 | 1 . . . . . . . . . . . . Parts Field Recycled . | . . . . . . . . . . . . . Retrieved Matter . | . . . . . . . . . . . . . Parts Self-Destructed . | . . . . . . . . . . . . . Prevented . | . . . . . . . . . . . . . Kills | -11 -10 -9 -8 -7 -6 -6 -6 -5 -4 -3 -2 -1 ------- Run | Yrd Mat Mat Mat Fac Fac Was Fac Fac Fac Res Res Acc Combat Hostiles Destroyed 18 | . 6 10 2 . . . . . . . . . Guns 2 | . . 2 . . . . . . . . . . Cannons 1 | . . . 1 . . . . . . . . . AOE 14 | . 6 8 . . . . . . . . . . Classes Destroyed 9 | 2 3 3 . 1 . . . . . . . . Worker 11 | . . . . 1 . . 3 2 2 . 3 . Tunneler 7 | 3 . 1 . . . . 1 . 1 . . 1 Hauler 3 | . 1 1 . . . . . . . . 1 . Recycler 3 | 1 . . . . . . 1 . . . 1 . Operator 3 | . . 1 . 1 . . . . 1 . . . Watcher 5 | . 1 2 2 . . . . . . . . . Swarmer 9 | . 6 3 . . . . . . . . . . Grunt 6 | . . 5 1 . . . . . . . . . Sentry 3 | . . 2 1 . . . . . . . . . Best Kill Streak 9 | 1 7 9 2 2 . . 3 2 4 . 3 1 Combat Bots Only 8 | . 6 8 1 . . . . . . . . . Max Kills in Single Turn 3 | 1 2 3 1 2 . . 1 1 1 . 1 1 Gunslinging . | . . . . . . . . . . . . . Exploded 3 | . 2 3 . . . . . . . . . . Melee . | . . . . . . . . . . . . . Uniques/NPCs Destroyed . | . . . . . . . . . . . . . Combat | -11 -10 -9 -8 -7 -6 -6 -6 -5 -4 -3 -2 -1 -------- Run | Yrd Mat Mat Mat Fac Fac Was Fac Fac Fac Res Res Acc Hostile Shots Fired 475 | . 12 21 13 45 6 . 2 6 45 . 112 213 Missed 277 | . 4 14 9 27 2 . . 4 35 . 59 123 Hits 198 | . 8 7 4 18 4 . 2 2 10 . 53 90 Melee 1 | . . . . . . . . 1 . . . . Projectile 197 | . 8 7 4 18 4 . 2 1 10 . 53 90 Critical Strikes 11 | . . . . . . . . . 1 . 5 5 Actively Blocked 1 | . . . . . . . . . 1 . . . Part Disruptions 1 | . . . . . . . . . . . 1 . Damage Taken 4071 | . 76 118 115 277 67 . 54 43 161 . 1176 1984 Core 2225 | . 4 29 42 119 45 . 54 . . . 327 1605 Absorbed by Shields . | . . . . . . . . . . . . . Redirected to Shielding 134 | . . . . . . . . . 27 . 107 . Regen/Repaired (Parts) 209 | . . 27 27 34 . . 35 . . . 86 . Core Remaining (%) 93 | 100 98 92 92 83 . . 88 100 100 100 77 . Volleys Fired 128 | 15 12 25 19 2 . . . . . . 39 16 Largest 2 | 2 2 2 2 1 . . . . . . 1 1 Hottest 132 | 40 40 126 132 56 . . . . . . 54 54 Shots Fired 170 | 30 18 42 22 2 . . . . . . 40 16 Gun 80 | 30 12 33 5 . . . . . . . . . Cannon 73 | . . . 15 2 . . . . . . 40 16 Launcher 17 | . 6 9 2 . . . . . . . . . Special . | . . . . . . . . . . . . . Kinetic 98 | 30 12 . . . . . . . . . 40 16 Thermal 38 | . . 33 5 . . . . . . . . . Explosive 17 | . 6 9 2 . . . . . . . . . Electromagnetic 17 | . . . 15 2 . . . . . . . . Robot Hit Streak 12 | 6 3 12 4 . . . . . . . 3 4 Robot Miss Streak 5 | 5 1 2 3 1 . . . . . . 2 2 Penetration Max . | . . . . . . . . . . . . . Secondary Targets . | . . . . . . . . . . . . . Shots Hit Robots 93 | 15 14 21 11 . . . 5 2 6 . 12 7 Core Hits 55 | 6 9 23 4 1 . . 1 1 3 . 6 1 Critical Kills . | . . . . . . . . . . . . . Critical Parts Destroyed . | . . . . . . . . . . . . . Critical Strikes 1 | . . . . . . . . . . . 1 . Sever 1 | . . . . . . . . . . . 1 . Melee Attacks 28 | . 2 2 . . . . 8 2 7 . 7 . Impact 7 | . . . . . . . 7 . . . . . Slashing 17 | . . . . . . . 1 2 7 . 7 . Piercing . | . . . . . . . . . . . . . Sneak Attacks 17 | . 2 2 . . . . 5 2 5 . 1 . Combat Hostiles . | . . . . . . . . . . . . . Follow-up Attacks . | . . . . . . . . . . . . . Damage Inflicted 3711 | 158 482 701 393 168 . . 474 132 401 . 514 288 Guns 591 | 158 107 292 34 . . . . . . . . . Cannons 860 | . . . 359 . . . . . . . 213 288 Explosions 952 | . 375 409 . 168 . . . . . . . . Melee 1308 | . . . . . . . 474 132 401 . 301 . Ramming . | . . . . . . . . . . . . . Kinetic 766 | 158 107 . . . . . . . . . 213 288 Thermal 494 | . . 292 34 168 . . . . . . . . Explosive 784 | . 375 409 . . . . . . . . . . Electromagnetic 359 | . . . 359 . . . . . . . . . Impact 401 | . . . . . . . 401 . . . . . Slashing 907 | . . . . . . . 73 132 401 . 301 . Piercing . | . . . . . . . . . . . . . Highest Corruption 7 | . . . . 1 . . . 7 1 . 6 3 Average Corruption 3 | . . . . 1 . . . 6 1 . 3 1 Corruption Purged . | . . . . . . . . . . . . . Corruption Blocked . | . . . . . . . . . . . . . Effects 23 | . . . . . . . . 7 . . 16 . Message Errors 6 | . . . . . . . . 1 . . 5 . Matter Fused 6 | . . . . . . . . 2 . . 4 . Heat Flow Errors 5 | . . . . . . . . 2 . . 3 . Energy Discharges 1 | . . . . . . . . . . . 1 . Parts Fused 2 | . . . . . . . . 1 . . 1 . Data Loss (minor) 1 | . . . . . . . . . . . 1 . Misfires 1 | . . . . . . . . . . . 1 . Alerts 1 | . . . . . . . . 1 . . . . Overload Shots . | . . . . . . . . . . . . . Overflow Damage 471 | . . . 39 68 . . 241 27 60 . . 36 Projectiles 75 | . . . 39 . . . . . . . . 36 Explosions 68 | . . . . 68 . . . . . . . . Melee 328 | . . . . . . . 241 27 60 . . . Knockbacks 8 | . . . . . . . 2 . . . 1 5 Impact 2 | . . . . . . . 2 . . . . . Kinetic 6 | . . . . . . . . . . . 1 5 Secondary . | . . . . . . . . . . . . . Self-Inflicted Damage 131 | . 16 41 47 27 . . . . . . . . Shots 8 | . 2 3 2 1 . . . . . . . . Rammed . | . . . . . . . . . . . . . Targets Rammed . | . . . . . . . . . . . . . Kicked . | . . . . . . . . . . . . . Crushed . | . . . . . . . . . . . . . Highest Temperature 405 | . 6 231 109 39 . . . 251 2 . 405 2 Average Temperature 78 | . 6 89 41 21 . . . 118 2 . 84 2 Received Heat Transfer 716 | . . 33 36 48 . . . . 9 . 500 90 Siege Activations . | . . . . . . . . . . . . . Martial Activations . | . . . . . . . . . . . . . Shielding Activations . | . . . . . . . . . . . . . Robots Disrupted . | . . . . . . . . . . . . . Combat Hostiles . | . . . . . . . . . . . . . Robots Corrupted 4 | . . . 1 . . . 3 . . . . . Combat Hostiles 1 | . . . 1 . . . . . . . . . Parts Fried 7 | . . . 3 . . . 4 . . . . . Impact Corruptions 9 | . . . . . . . 9 . . . . . Robots Melted . | . . . . . . . . . . . . . Combat Hostiles . | . . . . . . . . . . . . . Parts Melted 2 | . . 2 . . . . . . . . . . Heat Transferred 803 | . . 629 74 100 . . . . . . . . Parts Sabotaged . | . . . . . . . . . . . . . Parts Stolen . | . . . . . . . . . . . . . Parts Stripped . | . . . . . . . . . . . . . Power Chain Reactions . | . . . . . . . . . . . . . Alert | -11 -10 -9 -8 -7 -6 -6 -6 -5 -4 -3 -2 -1 ------- Run | Yrd Mat Mat Mat Fac Fac Was Fac Fac Fac Res Res Acc Maximum Alert Level 2 | . . 1 . . . . . . . . 2 1 Low Security (%) 88 | 100 100 72 100 100 100 100 100 100 100 100 74 79 Level 1 8 | . . 27 . . . . . . . . 14 20 Level 2 2 | . . . . . . . . . . . 10 . Level 3 . | . . . . . . . . . . . . . Level 4 . | . . . . . . . . . . . . . Level 5 . | . . . . . . . . . . . . . High Security . | . . . . . . . . . . . . . Max Security . | . . . . . . . . . . . . . Peak Influence 530 | 5 185 241 51 57 67 . 15 35 90 37 530 242 Initial 228 | . 3 46 31 11 12 . . . . 37 20 228 Average 62 | 1 110 119 10 16 27 . 1 4 34 37 98 117 Influence Increases 2637 | 20 210 426 162 138 125 . 44 70 275 . 916 251 Destroy 0b10 Robot/C 360 | . 120 200 40 . . . . . . . . . Destroy 0b10 Robot/NC 160 | 20 10 25 10 10 . . 25 10 20 . 25 5 Destroy Leader 96 | . 24 56 14 . . . . . . . 2 . Successful Hack 205 | . 8 36 11 32 20 . 1 . 45 . 52 . Disable Machine 90 | . 15 30 30 15 . . . . . . . . Destroy Structure 241 | . 33 49 12 21 . . 3 . . . 102 21 Partial Spotted 300 | . . 30 30 15 45 . . 15 45 . 90 30 Lose Combat Pursuer 1185 | . . . 15 45 60 . 15 45 165 . 645 195 Influence Decreases 2466 | 15 105 460 211 139 151 . 44 70 203 35 571 462 Entered New Map 347 | . 2 64 45 16 14 . . . . 35 17 154 Time Decay 1614 | 15 103 246 166 113 137 . 44 35 183 . 294 278 Search Patrol Dispatched 150 | . . . . . . . . . . . 150 . Lost Part 130 | . . . . 10 . . . 10 10 . 70 30 Lost Ally 10 | . . . . . . . . . 10 . . . Purge Threat 215 | . . 150 . . . . . 25 . . 40 . Squads Dispatched 28 | . . 2 1 3 3 . 2 1 1 . 12 3 Investigation 3 | . . 1 . 1 . . . . 1 . . . Extermination 13 | . . . . 1 1 . 1 1 . . 7 2 Reinforcement 12 | . . 1 1 1 2 . 1 . . . 5 1 Assault . | . . . . . . . . . . . . . Garrison . | . . . . . . . . . . . . . Intercept . | . . . . . . . . . . . . . Searches Triggered 1 | . . . . . . . . . . . 1 . Construction Impeded . | . . . . . . . . . . . . . Haulers Reinforced . | . . . . . . . . . . . . . Active Scanning Responses . | . . . . . . . . . . . . . Cargo Convoy Interrupts . | . . . . . . . . . . . . . Stealth | -11 -10 -9 -8 -7 -6 -6 -6 -5 -4 -3 -2 -1 --------- Run | Yrd Mat Mat Mat Fac Fac Was Fac Fac Fac Res Res Acc Distress Signals 11 | . 1 1 2 . . . . . 3 . 4 . Communications Jammed 48 | . . . . . . . . . . . 47 1 Distress Signals 48 | . . . . . . . . . . . 47 1 Times Spotted 214 | . 8 15 28 15 5 5 1 3 16 . 55 63 Peak Tracking Total 21 | . 6 9 8 8 4 6 1 3 9 . 16 21 Tactical Retreats 42 | . . . 4 3 2 . 1 2 5 . 16 9 Traps | -11 -10 -9 -8 -7 -6 -6 -6 -5 -4 -3 -2 -1 ------- Run | Yrd Mat Mat Mat Fac Fac Was Fac Fac Fac Res Res Acc Traps Triggered 15 | . . 1 1 2 1 . . 2 2 . 6 . Indirectly . | . . . . . . . . . . . . . Trap Hack Attempts 14 | . . . . . . . . . 14 . . . Triggered . | . . . . . . . . . . . . . Disarmed 1 | . . . . . . . . . 1 . . . Reprogrammed . | . . . . . . . . . . . . . Reused . | . . . . . . . . . . . . . Traps Extracted . | . . . . . . . . . . . . . Installed . | . . . . . . . . . . . . . Triggered . | . . . . . . . . . . . . . Machines | -11 -10 -9 -8 -7 -6 -6 -6 -5 -4 -3 -2 -1 ---------- Run | Yrd Mat Mat Mat Fac Fac Was Fac Fac Fac Res Res Acc Machines Disabled 6 | . 1 2 2 1 . . . . . . . . Max in Single Turn 1 | . 1 1 1 1 . . . . . . . . Garrison Access 5 | . . . 1 1 1 . 1 . . . . 1 Machines Repaired . | . . . . . . . . . . . . . Machines Dismantled . | . . . . . . . . . . . . . Machines Sabotaged . | . . . . . . . . . . . . . Overloaded Fab Kills . | . . . . . . . . . . . . . Hacking | -11 -10 -9 -8 -7 -6 -6 -6 -5 -4 -3 -2 -1 --------- Run | Yrd Mat Mat Mat Fac Fac Was Fac Fac Fac Res Res Acc Machines Accessed 68 | . 4 7 7 9 7 . 5 2 6 . 15 6 Terminals 39 | . 3 4 4 5 3 . 1 2 4 . 9 4 Fabricators 4 | . . . . . 1 . . . 2 . 1 . Repair Stations 6 | . . 2 1 1 . . 1 . . . 1 . Recycling Units 7 | . 1 . 1 1 1 . 1 . . . 2 . Scanalyzers 6 | . . 1 . 1 1 . 1 . . . 1 1 Garrison Access 6 | . . . 1 1 1 . 1 . . . 1 1 Total Hacks 191 | . 10 15 21 28 18 . 19 6 11 . 55 8 Successful 116 | . 4 13 13 17 11 . 16 2 5 . 31 4 Failed 75 | . 6 2 8 11 7 . 3 4 6 . 24 4 Catastrophic 19 | . 2 1 3 1 1 . . 1 2 . 8 . Database Lockouts . | . . . . . . . . . . . . . Manual 84 | . 9 8 12 12 5 . 2 4 4 . 27 1 Terminals 110 | . 9 8 15 15 8 . 2 6 8 . 34 5 Fabricators 8 | . . . . . 3 . . . 3 . 2 . Repair Stations 23 | . . 5 3 2 . . 4 . . . 9 . Recycling Units 16 | . 1 . 1 5 2 . 2 . . . 5 . Scanalyzers 22 | . . 2 . 5 4 . 8 . . . 2 1 Garrison Access 12 | . . . 2 1 1 . 3 . . . 3 2 Terminal Hacks 41 | . 1 2 6 3 3 . 1 2 4 . 16 3 Record 2 | . . . . . 1 . . . 1 . . . Open Door 4 | . . . . . . . . . 1 . . 3 Level Access Points 1 | . . . . . . . . . . . 1 . Branch Access Points 8 | . 1 1 1 1 1 . . 1 1 . 1 . Machine Index 1 | . . . . . . . . . . . 1 . Recycling Unit Index 2 | . . . . 1 . . 1 . . . . . Unreport Threat 3 | . . 1 . . . . . 1 . . 1 . Locate Traps 2 | . . . 1 . . . . . . . 1 . Maintenance Status 1 | . . . . . . . . . 1 . . . Security Status 1 | . . . . . . . . . . . 1 . Surveillance Status 1 | . . . . . . . . . . . 1 . Investigation Status 1 | . . . 1 . . . . . . . . . Reinforcement Status 1 | . . . 1 . . . . . . . . . Recall Investigation 2 | . . . . . . . . . . . 2 . Recall Extermination 2 | . . . . . . . . . . . 2 . Recall Reinforcements 3 | . . . . . . . . . . . 3 . Registered Components 1 | . . . 1 . . . . . . . . . Zone Layout 5 | . . . 1 1 1 . . . . . 2 . Fabricator Hacks 3 | . . . . . 1 . . . 1 . 1 . Network Status 1 | . . . . . 1 . . . . . . . Load Schematic 1 | . . . . . . . . . . . 1 . Build 1 | . . . . . . . . . 1 . . . Repair Station Hacks 21 | . . 5 2 2 . . 4 . . . 8 . Scan Component 11 | . . 3 1 1 . . 2 . . . 4 . Repair 10 | . . 2 1 1 . . 2 . . . 4 . Recycling Unit Hacks 8 | . . . . 1 . . 2 . . . 5 . Process 3 | . . . . 1 . . 1 . . . 1 . Report Inventory 2 | . . . . . . . 1 . . . 1 . Retrieve Matter 2 | . . . . . . . . . . . 2 . Retrieve Components 1 | . . . . . . . . . . . 1 . Scanalyzer 20 | . . 2 . 5 4 . 8 . . . 1 . Insert Component 10 | . . 1 . 2 2 . 4 . . . 1 . Analyze 10 | . . 1 . 3 2 . 4 . . . . . Garrison Access Hacks 5 | . . . 1 1 1 . 1 . . . . 1 Seal Access 5 | . . . 1 1 1 . 1 . . . . 1 Unauthorized Hacks 18 | . 3 4 4 5 2 . . . . . . . Terminals 18 | . 3 4 4 5 2 . . . . . . . Skim 18 | . 3 4 4 5 2 . . . . . . . Fabricators . | . . . . . . . . . . . . . Repair Stations . | . . . . . . . . . . . . . Recycling Units . | . . . . . . . . . . . . . Scanalyzers . | . . . . . . . . . . . . . Garrison Access . | . . . . . . . . . . . . . Data Cores Recovered 2 | . . . . 1 . . . . 1 . . . Used 1 | . . . . . . . . . 1 . . . Hacking Detections 54 | . 4 7 5 7 6 . 2 2 5 . 13 3 Full Trace Events 2 | . . . . 1 . . . . 1 . . . Feedback Events . | . . . . . . . . . . . . . Feedback Blocked . | . . . . . . . . . . . . . Robot Schematics Acquired . | . . . . . . . . . . . . . Robots Built 1 | . . . . . . . . . 1 . . . Authchips . | . . . . . . . . . . . . . Time 93 | . . . . . . . . . 93 . . . Total Robot Build Rating 7 | . . . . . . . . . 7 . . . Part Schematics Acquired 8 | . . 1 . 1 2 . 4 . . . . . Parts Built . | . . . . . . . . . . . . . Authchips . | . . . . . . . . . . . . . Time . | . . . . . . . . . . . . . Total Part Build Rating . | . . . . . . . . . . . . . Parts Repaired 10 | . . 2 1 1 . . 2 . . . 4 . Time 438 | . . 102 26 38 . . 83 . . . 189 . Parts Recycled . | . . . . . . . . . . . . . Recycled Matter 46 | . . . . 32 . . . . . . 14 . Retrieved Matter 14 | . . . . . . . . . . . 14 . Retrieved Components 3 | . . . . . . . . . . . 3 . Parts Scanalyzed 9 | . . 1 . 2 2 . 4 . . . . . Part Schematics Acquired 8 | . . 1 . 1 2 . 4 . . . . . Parts Damaged . | . . . . . . . . . . . . . Bothacking | -11 -10 -9 -8 -7 -6 -6 -6 -5 -4 -3 -2 -1 ------------ Run | Yrd Mat Mat Mat Fac Fac Was Fac Fac Fac Res Res Acc Used RIF Installer . | . . . . . . . . . . . . . Robots Hacked 4 | . 2 2 . . . . . . . . . . Non-combat 4 | . 2 2 . . . . . . . . . . Combat . | . . . . . . . . . . . . . Robot Hacks Applied 4 | . 2 2 . . . . . . . . . . no_distress 4 | . 2 2 . . . . . . . . . . Relay Couplers Released . | . . . . . . . . . . . . . Fabnet Peak Effective % . | . . . . . . . . . . . . . Robots Rewired . | . . . . . . . . . . . . . Allies Hacked . | . . . . . . . . . . . . . Hacks Repelled . | . . . . . . . . . . . . . Allies | -11 -10 -9 -8 -7 -6 -6 -6 -5 -4 -3 -2 -1 -------- Run | Yrd Mat Mat Mat Fac Fac Was Fac Fac Fac Res Res Acc Total Allies 1 | . . . . . . . . . 1 . . . Largest Group 1 | . . . . . . . . . 1 . . . Highest-Rated Group 36 | . . . . . . . . . 36 . . . Highest-Rated Ally 36 | . . . . . . . . . 36 . . . Total Orders . | . . . . . . . . . . . . . Ally Attacks . | . . . . . . . . . . . . . Total Damage . | . . . . . . . . . . . . . Kills . | . . . . . . . . . . . . . Allies Corrupted . | . . . . . . . . . . . . . Allies Melted . | . . . . . . . . . . . . . Intel | -11 -10 -9 -8 -7 -6 -6 -6 -5 -4 -3 -2 -1 ------- Run | Yrd Mat Mat Mat Fac Fac Was Fac Fac Fac Res Res Acc Active Infowar (turns) 5339 | 8 259 527 541 292 200 74 598 260 418 13 1548 601 Optics 1585 | . . 443 354 . . . . . . . 187 601 Sensors 4071 | . . . 102 260 200 74 598 257 418 13 1548 601 Traps 938 | . . . . . . . 403 239 296 . . . Seismic 825 | 8 209 298 310 . . . . . . . . . T.N.C. 50 | . 50 . . . . . . . . . . . Cloaking 361 | . . . . . . . . . 71 13 277 . Jamming 405 | . . . . . . . . . 44 . 74 287 ECM 418 | . . . 85 97 . . . . . . . 236 Robot Analysis Total . | . . . . . . . . . . . . . Derelict Logs Recovered . | . . . . . . . . . . . . . Drone Launches . | . . . . . . . . . . . . . Drone Recoveries . | . . . . . . . . . . . . . Exploration | -11 -10 -9 -8 -7 -6 -6 -6 -5 -4 -3 -2 -1 ------------- Run | Yrd Mat Mat Mat Fac Fac Was Fac Fac Fac Res Res Acc Turns Passed 5856 | 158 259 527 552 431 342 74 598 260 418 13 1552 672 Spaces Moved 9430 | 107 307 762 687 866 813 109 801 455 744 36 2596 1147 Core 145 | 2 1 . . . . . . . . . 3 139 Treads . | . . . . . . . . . . . . . Legs . | . . . . . . . . . . . . . Wheels 241 | 105 136 . . . . . . . . . . . Hover . | . . . . . . . . . . . . . Flight 9044 | . 170 762 687 866 813 109 801 455 744 36 2593 1008 Fastest Speed 23 | 50 37 34 34 32 32 32 32 28 28 26 26 23 Average Speed 32 | 89 64 34 43 34 32 32 32 28 28 26 26 30 Slowest Speed 300 | 100 250 104 104 37 32 32 105 28 105 26 300 50 Overloaded Moves 116 | . . . . . . . . . . . . 116 Propulsion Burnouts 1 | . . . . . . . . . . . . 1 Robots Hopped 88 | . . 1 2 5 5 . 1 9 8 . 42 15 Potential Cave-ins . | . . . . . . . . . . . . . Cave-ins Triggered . | . . . . . . . . . . . . . Exploration Rate (%) 29 | 6 44 40 47 20 22 73 26 14 18 1 48 29 Regions Visited 12 Branch Regions . Pre-discovered Areas . | . . . . . . . . . . . . . Known Exits Taken 7 | . . . 1 1 . . 1 1 1 1 1 . Unknown Exits Taken 3 | 1 1 1 . . . . . . . . . . Scrap Searched . | . . . . . . . . . . . . . Spaces Dug 96 | . . 37 20 . . . 3 . . . 31 5 Terrain Destroyed 178 | . 31 55 20 26 . . 3 . . . 35 8 Melee 3 | . . . . . . . 3 . . . . . Projectile 43 | . . . . . . . . . . . 35 8 AOE 132 | . 31 55 20 26 . . . . . . . . Terrain Rammed . | . . . . . . . . . . . . . Walls Destroyed . | . . . . . . . . . . . . . Machines Disabled . | . . . . . . . . . . . . . Actions | -11 -10 -9 -8 -7 -6 -6 -6 -5 -4 -3 -2 -1 --------- Run | Yrd Mat Mat Mat Fac Fac Was Fac Fac Fac Res Res Acc Total 11892 | 139 351 979 913 995 891 147 1125 575 929 38 3367 1443 Wait 2048 | . 2 145 158 118 75 39 290 112 140 . 710 259 Move 9258 | 106 306 759 683 855 804 108 798 436 728 35 2518 1122 Hop 72 | . . 1 1 5 4 . 1 9 7 . 34 10 Pick Up 84 | 6 7 6 14 5 4 . 7 6 8 1 8 12 Fast Attach 72 | 8 3 9 6 2 . . 7 1 6 . 24 6 Attach 30 | . 1 4 4 2 1 . 3 5 . 2 4 4 Detach 20 | 1 1 5 3 1 . . 2 1 1 . 2 3 Swap 47 | 1 6 13 11 . . . 1 1 5 . 7 2 Drop 89 | 2 11 10 14 5 3 . 8 2 12 . 13 9 Fire 128 | 15 12 25 19 2 . . . . . . 39 16 Melee 28 | . 2 2 . . . . 8 2 7 . 7 . Ram . | . . . . . . . . . . . . . Kick . | . . . . . . . . . . . . . Crush . | . . . . . . . . . . . . . Escape Stasis 2 | . . . . . . . . . 1 . 1 . Rewire . | . . . . . . . . . . . . . Trap 14 | . . . . . . . . . 14 . . . Miscellaneous . | . . . . . . . . . . . . . Route ------- -11/Scrapyard -10/Materials (discovered 2 exits: *Mat / Min) -9/Materials (discovered 3 exits: *Mat / *Min x2) -8/Materials (discovered 4 exits: *Fac x2 / *Sto x2) -7/Factory (discovered 3 exits: *Fac / *Low x2) -6/Factory (discovered 2 exits: *Low x2) -6/Waste -6/Factory (discovered 2 exits: *Fac x2) -5/Factory (discovered 3 exits: *Fac / Upp x2) -4/Factory (discovered 5 exits: *Res / Upp x2 / *Ext x2) -3/Research -2/Research (discovered 5 exits: *Acc x3 / *Qua x2) -1/Access (discovered 1 exit: *Com) History --------- Turn | Location | Event 5 | -11/Scrapyard | Discovered new exit (range 15) 159 | -11/Scrapyard | Entered Materials 301 | -10/Materials | Build established: Mutant 381 | -10/Materials | Discovered new exit (range 15) 383 | -10/Materials | Identified exit to Mines 418 | -10/Materials | Entered another Materials area 418 | -9/Materials | Evolved 2 slots: Propulsion x1, Utility x1 495 | -9/Materials | Destroyed 8 combat bots 505 | -9/Materials | Discovered new exit (range 8) 626 | -9/Materials | Repaired Imp. Flight Unit 717 | -9/Materials | Discovered new exit (range 7) 824 | -9/Materials | Repaired Imp. Flight Unit 848 | -9/Materials | Identified exit to Mines 945 | -9/Materials | Entered another Materials area 945 | -8/Materials | Evolved 2 slots: Utility x2 963 | -8/Materials | Discovered new exit (range 12) 1106 | -8/Materials | Discovered new exit (range 8) 1329 | -8/Materials | Repaired Sml. Storage Unit 1373 | -8/Materials | Identified exit to Storage 1476 | -8/Materials | Discovered new exit (range 16) 1496 | -8/Materials | Identified exit to Factory 1497 | -8/Materials | Entered Factory 1497 | -7/Factory | Evolved 2 slots: Utility x2 1583 | -7/Factory | Repaired Lgt. Nuclear Core 1755 | -7/Factory | Build established: Hacker-Mutant 1891 | -7/Factory | Discovered new exit (range 15) 1905 | -7/Factory | Identified exit to Lower Caves 1924 | -7/Factory | Discovered new exit (range 5) 1926 | -7/Factory | Identified exit to Factory 1928 | -7/Factory | Entered another Factory area 1928 | -6/Factory | Evolved 2 slots: Utility x2 2018 | -6/Factory | Identified exit to Lower Caves 2034 | -6/Factory | Spotted B-75 Beast 2227 | -6/Factory | Build established: Hacker-Sprinter 2270 | -6/Factory | Sucked down chute 2270 | -6/Factory | Entered Waste 2274 | -6/Waste | Spotted C-40 Crusher 2300 | -6/Waste | Spotted C-40 Crusher 2302 | -6/Waste | Spotted C-40 Crusher 2318 | -6/Waste | Spotted C-40 Crusher 2334 | -6/Waste | Spotted C-40 Crusher 2341 | -6/Waste | Discovered new exit (range 10) 2344 | -6/Waste | Identified exit to Factory 2344 | -6/Waste | Entered Factory 2620 | -6/Factory | Repaired Imp. Flight Unit 2654 | -6/Factory | Repaired VTOL Module 2926 | -6/Factory | Discovered new exit (range 14) 2932 | -6/Factory | Build established: Hacker-Scout 2938 | -6/Factory | Discovered new exit (range 10) 2941 | -6/Factory | Identified exit to Factory 2942 | -6/Factory | Entered another Factory area 2942 | -5/Factory | Evolved 2 slots: Propulsion x1, Utility x1 3103 | -5/Factory | Identified exit to Upper Caves 3201 | -5/Factory | Discovered new exit (range 3) 3202 | -5/Factory | Identified exit to Factory 3202 | -5/Factory | Entered another Factory area 3202 | -4/Factory | Evolved 2 slots: Power x1, Propulsion x1 3271 | -4/Factory | Identified exit to Upper Caves 3271 | -4/Factory | Identified exit to Extension 3491 | -4/Factory | Spotted B-86 Titan 3494 | -4/Factory | Allied Derelicts emerged from ambush trap array 3540 | -4/Factory | Lost 3 allies 3589 | -4/Factory | Fabricated M-36 Artificer? 3616 | -4/Factory | Discovered new exit (range 9) 3619 | -4/Factory | Identified exit to Research 3620 | -4/Factory | Entered Research 3620 | -3/Research | Evolved 2 slots: Propulsion x1, Utility x1 3631 | -3/Research | Discovered new exit (range 4) 3632 | -3/Research | Identified exit to Research 3633 | -3/Research | Entered another Research area 3633 | -2/Research | Evolved 2 slots: Utility x2 3775 | -2/Research | Repaired Imp. Flight Unit 3815 | -2/Research | Repaired Lgt. Nuclear Core 3854 | -2/Research | Repaired Imp. Propulsion Shielding 3918 | -2/Research | Repaired Imp. Cloaking Device 3956 | -2/Research | Discovered new exit (range 4) 3957 | -2/Research | Identified exit to Quarantine 3979 | -2/Research | Identified exit to Access 4074 | -2/Research | Build established: Hacker-Sprinter 4344 | -2/Research | Found Prototype Processor 4351 | -2/Research | Identified Exp. Targeting Computer 4678 | -2/Research | Spotted B-90 Cyclops 4941 | -2/Research | Spotted B-90 Cyclops 5087 | -2/Research | Lost 5 allies 5103 | -2/Research | Spotted B-90 Cyclops 5133 | -2/Research | Search patrols dispatched 5185 | -2/Research | Entered Access 5185 | -1/Access | Evolved 2 slots: Utility x2 5209 | -1/Access | Lost 3 parts (3u) 5296 | -1/Access | Build established: Hacker-Ninja 5315 | -1/Access | Found Gamma Bomb Array 5604 | -1/Access | Spotted B-99 Colossus 5643 | -1/Access | Build established: Wizard-Ninja 5672 | -1/Access | Discovered new exit (range 8) 5673 | -1/Access | Identified exit to Command 5786 | -1/Access | Released all parts (18) 5818 | -1/Access | Lost 6 parts (5n1u) 5823 | -1/Access | Core integrity fell below 50% 5832 | -1/Access | Core integrity fell below 20% 5857 | -1/Access | Destroyed by S-43 Plague with Heavy Machine Gun Last Messages --------------- 05786_ Released Enh. Optical Array. 05786_ Released System Shield. 05786_ Released Hacking Suite. 05786_ Released Imp. Sensor Array. 05786_ Released Hacking Suite. 05786_ Released System Shield. 05786_ Released Faulty Plasma Lance. 05786_ Released Adv. Heat Sink. 05786_ Released Adv. Signal Interpreter. 05786_ Released ECM Suite. 05786_ Released Hacking Suite. 05787_ Acquired Imp. Flight Unit. 05787_ Imp. Flight Unit destroyed. 05792_ S-43 Plague destroyed. 05793_ P-80 Master resets S-43 Plague, system corruption cleaned. [Achievement: Hunted] 05828_ Critical hit (Burn: +37). 05841_ Slug penetrates Wall. 05845_ S-43 Plague destroyed. Map ----- +----------------------------------------------------+ | ???????????????????????????????????????????? | | ???????????????????????????????????????????? | | ???????????????????????????????????????????? | | ???????????????????????????????????????????? | | ???????????????????????????????????????????? | | ???????????????????????????????????????????? | | ???????????????????????????????????????????? | | ???????????????????????????????????????????? | | ???????????????????????????????????????????? | | ???????????????????????????????????????????? | | ????????????????? ????????????????????????? | | ??????????????? ????????????????????????? | | ???????????? ???? ?????????????????? | | ?????????? ??? ?????????????????? | | ????????# " ??????????????????? | | ????????# !!! """ ??????????????????? | | ????????# !!! """ ???????????????????? | | ????????# !! " ???????????????????? | | ????????? ????????????????????? | | ?????????? ????????????????????? | | ???????????? ?????????????????????? | | ????????????? ?????????????????????? | | ??????????????# u ??????????????????????? | | ??????????????? ??????????????????????? | | ????????????????# #??????????????????????? | | ????????????????# @#??????????????????????? | | ????????????????# #??????????????????????? | | ????????????????# #????#+############????? | | ???????????????## s##???# #????? | | ???????????????# s #???# #????? | | ?????????????### s##### #????? | | ?????????????+ / = #????? | | ?????????????### ##### # ??? | | ???????????????# * #???# !* + ??? | | ???????????????###=###???# !* #????? | | ???????#+#+#######%??????# !! #????? | | ???????# [Y####### #????? | | ???????+ pp / #????? | | ???????# #### #????? | | ????????# #??# #????? | | ????????# #??##############????? | | ??????### #?? #????? | | ??????# " ### #????? | | ??????# """ + #????? | | ??????# """ [ # * #????? | | ???????# " %= # #????? | | ???????# #? #????? | | ???????# #?####/########????? | | ???????# #???? #??????????? | | ???????+ #???? #??????????? | +----------------------------------------------------+ Best States ------------- Heat Dissipation 71 Energy Generation 23 Energy Capacity 450 Matter Stores 300 Matter Capacity 300 Sight Range 22 Robot Scan Range 16 Terrain Scan Density 10 ECM Strength 1 Jamming Range 16 Cloak Strength 5 Power Amplification 30 Additional Mass Support 9 Armor Coverage 225 Propulsion Shielding 66 Point Defense Rating 240 Evasion (%) 76 Core Analysis 6 Offensive Hacking 40 Defensive Hacking 20 Item Schematics ----------------- Weight Redist. System | -9/Materials | Scanalyzed Lgt. Nuclear Core | -7/Factory | Scanalyzed Stasis Canceller | -6/Factory | Scanalyzed Cld. Cesium-ion Thruster | -6/Factory | Scanalyzed Hvy. Deuterium Engine | -6/Factory | Scanalyzed Imp. Sensor Array | -6/Factory | Scanalyzed VTOL Module | -6/Factory | Scanalyzed Dynamic Insulation System | -6/Factory | Scanalyzed Robot Schematics ------------------ None Fabricated ------------ M-36 Artificer | x1 | -4/Factory | Preloaded Repaired ---------- Imp. Flight Unit | 70% | -9/Materials Imp. Flight Unit | 62% | -9/Materials Sml. Storage Unit | 82% | -8/Materials Lgt. Nuclear Core | 32% | -7/Factory Imp. Flight Unit | 67% | -6/Factory VTOL Module | 12% | -6/Factory Imp. Flight Unit | 47% | -2/Research Lgt. Nuclear Core | 68% | -2/Research Imp. Propulsion Shielding | 73% | -2/Research Imp. Cloaking Device | 51% | -2/Research Alien Tech Used ----------------- None Achievements -------------- Denied? Hunted Prolific Hacker Slippery One Challenges ------------ None Game ------ Seed MobileFieldthrustDoomcannon Manual? 0 Play Time 03:22:20 Cumulative 30.9 hours Start 2025.09.27 @ 17:31:31 End 2025.09.28 @ 11:56:50 Sessions 5 Manual Loads 0 Difficulty Rogue Special Mode None Game No. 19 Rogue 19 Adventurer 0 Explorer 0 Win Type - Total 0 Types 0/0/0/0/0/0/0/0/0/0 Lore% 3 Gallery% 27 Achievement% 23 Wizard Run 0 Options --------- Layout 1 ASCII 0 Keyboard 1 Movement Vi Keybinds 0 Fullscreen 1 Font 24/Smallcaps Map View 50x35 Zoom Use 0% Tactical HUD 1 Map Filters NONE Filters NONE Steam 1 RUN: 47b1f757-0364-4dd0-a62a-a2728b5d5c81